bitfinex-derivatives/quotes_SOLF0:USTF0_20260208
["timestamp","ask_amount","ask_price","bid_price","bid_amount"]
[1770566781286,8.2496118,87.685,87.625,8.20368275]
[1770566781488,8.2496118,87.684,87.625,8.20368275]
[1770566781682,8.2496118,87.683,87.641,10.2771]
[1770566781881,8.2496118,87.682,87.641,10.2771]
[1770566782085,8.2496118,87.681,87.641,10.2771]
[1770566782286,7.95151255,87.686,87.641,10.2771]
[1770566782485,8.35276836,87.685,87.641,10.2771]
[1770566782786,8.35276836,87.684,87.641,10.2771]
[1770566782987,8.35276836,87.683,87.641,10.2771]
[1770566783183,7.95151255,87.686,87.641,10.2771]
[1770566783389,7.95151255,87.714,87.647,8.20368275]
[1770566784679,7.95151255,87.714,87.66,10.2748]
[1770566787695,7.95151255,87.729,87.672,8.20368275]
[1770566788387,7.95151255,87.729,87.676,10.2729]
[1770566789796,7.95151255,87.729,87.684,10.272]
[1770566791092,7.95151255,87.749,87.692,10.2711]
[1770566795397,7.95151255,87.747,87.692,10.2711]
[1770566795600,7.95151255,87.745,87.692,10.2711]
[1770566795897,7.95151255,87.743,87.692,10.2711]
[1770566796195,7.95151255,87.741,87.692,10.2711]
[1770566796397,8.2959892,87.74,87.692,10.2711]
[1770566796697,8.2959892,87.739,87.692,10.2711]
[1770566796898,8.2959892,87.738,87.692,10.2711]
[1770566797098,7.95151255,87.741,87.692,10.2711]
[1770566797301,7.95151255,87.739,87.692,10.2711]
[1770566797500,8.29481338,87.738,87.692,10.2711]
[1770566797796,7.95151255,87.736,87.681,10.2723]
[1770566797996,7.95151255,87.734,87.681,10.2723]
[1770566798196,7.95151255,87.732,87.681,10.2723]
[1770566798397,7.95151255,87.73,87.67,10.2736]
[1770566798594,7.95151255,87.728,87.644,8.20368275]
[1770566798798,7.95151255,87.724,87.644,8.20368275]
[1770566799004,7.95151255,87.719,87.646,10.2765]
[1770566799198,7.95151255,87.717,87.646,10.2765]
[1770566799501,7.95151255,87.704,87.635,10.2778]
[1770566799798,10.34765015,87.7,87.635,10.2778]
[1770566800104,7.95151255,87.698,87.635,10.2778]
[1770566800298,7.95151255,87.695,87.635,10.2778]
[1770566800600,7.95151255,87.691,87.635,10.2778]
[1770566800799,8.29447025,87.69,87.622,10.2793]
[1770566801103,7.95151255,87.688,87.622,10.2793]
[1770566801299,7.95151255,87.686,87.622,10.2793]
[1770566801507,7.95151255,87.684,87.622,10.2793]
[1770566801705,7.95151255,87.682,87.622,10.2793]
[1770566801997,7.95151255,87.68,87.622,10.2793]
[1770566802202,7.95151255,87.678,87.622,10.2793]
[1770566802402,7.95151255,87.676,87.622,10.2793]
[1770566803098,8.34523523,87.675,87.622,10.2793]
[1770566803402,7.95151255,87.673,87.622,10.2793]
[1770566803604,7.95151255,87.671,87.61,10.2807]
[1770566803801,7.95151255,87.669,87.61,10.2807]
[1770566804002,7.95151255,87.669,87.587,1.98559304]
[1770566804003,7.95151255,87.666,87.599,10.282]
[1770566804196,7.95151255,87.664,87.599,10.282]
[1770566804391,7.95151255,87.658,87.599,10.282]
[1770566804592,10.34765015,87.659,87.599,10.282]
[1770566804593,7.95151255,87.656,87.599,10.282]
[1770566804797,9.41409885,87.654,87.588,10.2833]
[1770566805007,9.41409885,87.652,87.588,10.2833]
[1770566805199,9.41409885,87.65,87.588,10.2833]
[1770566805499,9.41409885,87.648,87.588,10.2833]
[1770566805702,9.41409885,87.646,87.584,8.20368275]
[1770566805899,8.34523523,87.645,87.584,8.20368275]
[1770566806099,9.41409885,87.643,87.584,8.20368275]
[1770566806306,9.41409885,87.641,87.584,8.20368275]
[1770566806499,9.41409885,87.639,87.584,8.20368275]
[1770566806807,9.41409885,87.637,87.575,10.2848]
[1770566807303,9.41409885,87.633,87.557,1.98623335]
[1770566807605,9.41409885,87.631,87.551,10.2876]
[1770566807807,9.41409885,87.629,87.551,10.2876]
[1770566808099,9.41409885,87.627,87.551,10.2876]
[1770566808300,10.2799,87.618,87.539,9.23451054]
[1770566808507,9.41409885,87.616,87.539,9.23451054]
[1770566808703,9.41409885,87.614,87.539,9.23451054]
[1770566809006,9.41409885,87.612,87.539,9.23451054]
[1770566809202,9.41409885,87.608,87.539,9.23451054]
[1770566809405,9.41409885,87.623,87.541,9.23451054]
[1770566809602,20.76674685,87.663,87.541,9.23451054]
[1770566809603,9.41409885,87.621,87.541,9.23451054]
[1770566809801,9.41409885,87.619,87.541,9.23451054]
[1770566810001,9.41409885,87.617,87.541,9.23451054]
[1770566810198,9.41409885,87.615,87.541,9.23451054]
[1770566810407,9.41409885,87.613,87.541,9.23451054]
[1770566810608,9.41409885,87.611,87.541,9.23451054]
[1770566810813,9.41409885,87.609,87.525,9.23451054]
[1770566811009,9.41409885,87.607,87.525,9.23451054]
[1770566811209,9.41409885,87.595,87.525,9.23451054]
[1770566811805,9.41409885,87.595,87.527,9.23451054]
[1770566812608,9.41409885,87.594,87.527,9.23451054]
[1770566813706,9.41409885,87.589,87.527,9.23451054]
[1770566814404,9.41409885,87.586,87.527,9.23451054]
[1770566814906,13.95830429,87.632,87.527,9.23451054]
[1770566814907,9.41409885,87.582,87.527,9.23451054]
[1770566817906,9.41409885,87.58,87.527,9.23451054]
[1770566818106,9.41409885,87.58,87.508,9.23451054]
[1770566818910,10.2844,87.579,87.509,10.2926]
[1770566819102,9.41409885,87.58,87.497,1.98760034]
[1770566819103,9.41409885,87.58,87.51,9.23451054]
[1770566820409,9.41409885,87.596,87.513,9.23451054]
[1770566820612,8.27326097,87.625,87.513,9.23451054]
[1770566820613,9.41409885,87.61,87.513,9.23451054]
[1770566821308,9.41409885,87.607,87.536,9.23451054]
[1770566821816,9.41409885,87.625,87.538,9.23451054]
[1770566822712,9.41409885,87.625,87.508,34.32]
[1770566822713,9.41409885,87.625,87.561,9.23451054]
[1770566823911,9.41409885,87.623,87.561,9.23451054]
[1770566824716,10.2794,87.622,87.561,9.23451054]
[1770566825310,9.41409885,87.648,87.562,9.23451054]
[1770566825516,9.41409885,87.646,87.562,9.23451054]
[1770566825906,9.41409885,87.624,87.562,9.23451054]
[1770566827310,9.41409885,87.64,87.565,9.23451054]
[1770566827716,9.41409885,87.64,87.503,296.0]
[1770566827717,8.27903795,87.639,87.549,9.23451054]
[1770566827916,19.69609885,87.6,87.549,9.23451054]
[1770566828514,9.41409885,87.599,87.549,9.23451054]
[1770566829621,9.41409885,87.598,87.534,9.23451054]
[1770566830722,9.41409885,87.595,87.534,9.23451054]
[1770566830914,9.41409885,87.595,87.521,9.23451054]
[1770566831316,9.41409885,87.583,87.524,9.23451054]
[1770566831726,9.41409885,87.583,87.498,9.23451054]
[1770566832822,9.41409885,87.583,87.472,11.43]
[1770566832823,9.41409885,87.593,87.527,9.23451054]
[1770566833528,9.41409885,87.593,87.532,9.23451054]
[1770566834934,9.41409885,87.593,87.535,9.99815532]
[1770566835437,9.41409885,87.593,87.536,10.2894]
[1770566835628,9.41409885,87.593,87.519,9.99815532]
[1770566835828,9.66011932,87.591,87.519,9.99815532]
[1770566836127,9.66011932,87.589,87.519,9.99815532]
[1770566836329,8.2931581,87.588,87.519,9.99815532]
[1770566836530,9.66011932,87.586,87.519,9.99815532]
[1770566836732,9.66011932,87.582,87.519,9.99815532]
[1770566837628,9.66011932,87.568,87.503,9.99815532]
[1770566837834,9.66011932,87.568,87.471,0.52926537]
[1770566837835,9.66011932,87.568,87.494,9.99815532]
[1770566838027,9.66011932,87.566,87.494,9.99815532]
[1770566838435,9.66011932,87.564,87.497,9.99815532]
[1770566838632,8.30719725,87.563,87.497,9.99815532]
[1770566838833,9.66011932,87.561,87.497,9.99815532]
[1770566839137,9.66011932,87.557,87.497,9.99815532]
[1770566840035,27.80221323,87.625,87.471,0.52926537]
[1770566840036,9.66011932,87.543,87.471,0.52926537]
[1770566840234,9.66011932,87.52,87.471,6.537e-05]
[1770566840436,9.66011932,87.509,87.471,6.537e-05]
[1770566840631,9.66011932,87.507,87.471,6.537e-05]
[1770566840830,9.66011932,87.498,87.471,6.537e-05]
[1770566841040,9.66011932,87.496,87.471,6.537e-05]
[1770566841237,9.66011932,87.492,87.471,6.537e-05]
[1770566841540,8.31528521,87.491,87.471,6.537e-05]
[1770566841736,8.31528521,87.49,87.471,6.537e-05]
[1770566842039,8.31528521,87.489,87.471,6.537e-05]
[1770566842230,8.3085481,87.488,87.471,6.537e-05]
[1770566842533,8.3085481,87.487,87.471,6.537e-05]
[1770566842734,8.3085481,87.486,87.471,6.537e-05]
[1770566842934,9.66011932,87.49,87.471,6.537e-05]
[1770566843128,8.30854876,87.489,87.471,6.537e-05]
[1770566843338,8.30854876,87.488,87.471,6.537e-05]
[1770566843532,8.30854876,87.487,87.471,6.537e-05]
[1770566843729,9.66011932,87.481,87.471,6.537e-05]
[1770566843932,8.31043838,87.48,87.471,6.537e-05]
[1770566844137,9.66011932,87.478,87.471,6.537e-05]
[1770566844644,9.66011932,87.475,87.471,6.537e-05]
[1770566845739,10.2968,87.474,87.471,6.537e-05]
[1770566846333,9.66011932,87.473,87.471,6.537e-05]
[1770566847339,20.61034935,87.525,87.471,6.537e-05]
[1770566847340,10.2954,87.486,87.471,6.537e-05]
[1770566847542,8.30698674,87.485,87.471,6.537e-05]
[1770566847741,9.66011932,87.483,87.471,6.537e-05]
[1770566847935,17.96733755,87.482,87.471,6.537e-05]
[1770566848136,9.66011932,87.482,87.471,6.537e-05]
[1770566849537,10.2941,87.497,87.471,6.537e-05]
[1770566849736,17.96473967,87.496,87.471,6.537e-05]
[1770566849941,160.0528,87.54,87.471,6.537e-05]
[1770566849942,9.66011932,87.494,87.471,6.537e-05]
[1770566850141,20.61034935,87.524,87.471,6.537e-05]
[1770566850142,9.66011932,87.492,87.471,6.537e-05]
[1770566850439,9.66011932,87.508,87.471,6.537e-05]
[1770566850738,9.66011932,87.524,87.471,6.537e-05]
[1770566850932,9.66011932,87.522,87.471,6.537e-05]
[1770566851132,9.66011932,87.538,87.472,9.99815532]
[1770566851337,17.96636668,87.537,87.472,9.99815532]
[1770566851546,8.30624736,87.536,87.472,9.99815532]
[1770566851735,9.66011932,87.532,87.472,9.99815532]
[1770566851933,9.66011932,87.53,87.472,9.99815532]
[1770566852435,438.49138999,87.543,87.471,6.537e-05]
[1770566852436,438.49138999,87.543,87.476,9.99815532]
[1770566852637,9.66011932,87.562,87.476,9.99815532]
[1770566852836,9.66011932,87.56,87.476,9.99815532]
[1770566853038,8.30725348,87.559,87.476,9.99815532]
[1770566853236,9.66011932,87.557,87.476,9.99815532]
[1770566853430,17.9673728,87.556,87.476,9.99815532]
[1770566853636,17.9673728,87.555,87.476,9.99815532]
[1770566853838,8.30725348,87.554,87.491,9.99815532]
[1770566854038,19.94741932,87.555,87.491,9.99815532]
[1770566854039,8.30725348,87.553,87.491,9.99815532]
[1770566854239,8.30725348,87.552,87.491,9.99815532]
[1770566854438,8.30725348,87.551,87.491,9.99815532]
[1770566854637,19.94741932,87.555,87.491,9.99815532]
[1770566854843,8.31249901,87.554,87.494,9.99815532]
[1770566855045,9.66011932,87.555,87.494,9.99815532]
[1770566855240,17.97436801,87.554,87.494,9.99815532]
[1770566855440,8.31424869,87.553,87.494,9.99815532]
[1770566855741,8.31424869,87.552,87.494,9.99815532]
[1770566856046,8.31424869,87.551,87.496,10.2941]
[1770566856246,10.30551114,87.577,87.497,9.99815532]
[1770566856546,8.31633947,87.576,87.497,9.99815532]
[1770566856742,8.31633947,87.575,87.497,9.99815532]
[1770566856944,9.66011932,87.587,87.471,6.537e-05]
[1770566856945,9.66011932,87.587,87.524,9.99815532]
[1770566857148,8.31702445,87.586,87.524,9.99815532]
[1770566857344,8.31702445,87.585,87.524,9.99815532]
[1770566857537,9.66011932,87.583,87.524,9.99815532]
[1770566857743,9.66011932,87.581,87.524,9.99815532]
[1770566858051,9.66011932,87.6,87.524,9.99815532]
[1770566858646,9.66011932,87.598,87.524,9.99815532]
[1770566858950,9.66011932,87.596,87.525,9.99815532]
[1770566859146,9.66011932,87.616,87.525,9.99815532]
[1770566859346,8.32001213,87.615,87.525,9.99815532]
[1770566859547,17.98013145,87.614,87.546,9.99815532]
[1770566859745,8.32001213,87.613,87.546,9.99815532]
[1770566859950,8.32001213,87.612,87.546,9.99815532]
[1770566860148,9.66011932,87.631,87.561,9.99815532]
[1770566860352,17.97928244,87.63,87.561,9.99815532]
[1770566860551,9.66011932,87.628,87.561,9.99815532]
[1770566860752,9.66011932,87.626,87.561,9.99815532]
[1770566860948,17.97928244,87.625,87.561,9.99815532]
[1770566861151,8.31916312,87.624,87.561,9.99815532]
[1770566861453,8.31916312,87.623,87.561,9.99815532]
[1770566861653,8.31916312,87.622,87.561,9.99815532]
[1770566861953,8.31916312,87.621,87.561,9.99815532]
[1770566862148,8.31916312,87.62,87.561,9.99815532]
[1770566862454,9.66011932,87.625,87.561,9.99815532]
[1770566862654,8.3159522,87.624,87.566,9.99815532]
[1770566862955,9.66011932,87.639,87.566,9.99815532]
[1770566863854,9.66011932,87.639,87.582,9.99815532]
[1770566864650,9.66011932,87.639,87.585,9.99815532]
[1770566865848,9.66011932,87.639,87.587,10.33617661]
[1770566867248,9.66011932,87.639,87.572,10.33617661]
[1770566867752,9.91368931,87.634,87.572,10.33617661]
[1770566868756,10.2782,87.632,87.572,10.33617661]
[1770566869548,9.91368931,87.652,87.575,10.33617661]
[1770566870158,9.91368931,87.652,87.586,10.33617661]
[1770566870754,10.2761,87.651,87.588,20.61947661]
[1770566870951,9.91368931,87.65,87.588,20.61947661]
[1770566871156,9.91368931,87.65,87.589,10.33617661]
[1770566872157,9.91368931,87.666,87.589,10.33617661]
[1770566872561,9.91368931,87.666,87.61,20.61687661]
[1770566872760,9.91368931,87.666,87.611,10.33617661]
[1770566873258,9.91368931,87.682,87.611,10.33617661]
[1770566874159,9.91368931,87.682,87.615,10.33617661]
[1770566875260,9.91368931,87.682,87.619,10.33617661]
[1770566876265,9.91368931,87.68,87.619,10.33617661]
[1770566877164,9.91368931,87.663,87.604,10.2815]
[1770566877559,9.91368931,87.663,87.584,10.33617661]
[1770566877763,9.91368931,87.663,87.463,160.1918]
[1770566877764,9.91368931,87.66,87.593,10.33617661]
[1770566879861,9.91368931,87.656,87.593,10.33617661]
[1770566880065,9.91368931,87.656,87.53,10.33617661]
[1770566880366,9.91368931,87.639,87.578,10.33617661]
[1770566880576,9.91368931,87.676,87.578,10.33617661]
[1770566881870,10.2733,87.675,87.613,20.61647661]
[1770566882082,9.91368931,87.709,87.614,10.33617661]
[1770566883165,9.91368931,87.685,87.617,10.2799]
[1770566883362,9.91368931,87.685,87.596,10.33617661]
[1770566883763,20.18908931,87.656,87.596,20.61847661]
[1770566884062,9.91368931,87.655,87.596,20.61847661]
[1770566884266,9.91368931,87.65,87.585,10.2837]
[1770566884867,10.2763,87.649,87.587,10.2833]
[1770566885068,9.91368931,87.648,87.587,10.2833]
[1770566885268,9.91368931,87.648,87.586,10.33617661]
[1770566885669,10.2765,87.647,87.586,10.33617661]
[1770566886074,9.91368931,87.681,87.586,10.33617661]
[1770566886275,9.91368931,87.681,87.546,34.28]
[1770566886276,10.2753,87.657,87.599,10.33617661]
[1770566887478,9.91368931,87.649,87.582,10.33617661]
[1770566888671,9.91368931,87.649,87.592,10.2828]
[1770566888875,9.91368931,87.666,87.593,10.33617661]
[1770566889679,9.91368931,87.666,87.602,10.33617661]
[1770566890274,9.91368931,87.666,87.603,10.33617661]
[1770566890275,10.2744,87.665,87.603,10.33617661]
[1770566890882,9.91368931,87.659,87.544,10.33617661]
[1770566891175,8.3047986,87.658,87.544,10.33617661]
[1770566891375,10.2765,87.647,87.578,10.33617661]
[1770566891576,20.19018931,87.647,87.578,10.33617661]
[1770566891778,9.91368931,87.646,87.578,10.33617661]
[1770566892382,9.91368931,87.643,87.587,10.2834]
[1770566893478,9.91368931,87.639,87.563,10.33617661]
[1770566893684,41.15424935,87.686,87.563,10.33617661]
[1770566893685,9.91368931,87.637,87.563,10.33617661]
[1770566893882,9.91368931,87.635,87.563,10.33617661]
[1770566894083,8.33649914,87.636,87.563,10.33617661]
[1770566894084,9.91368931,87.633,87.563,10.33617661]
[1770566894284,20.61034935,87.659,87.563,10.33617661]
[1770566894285,9.91368931,87.613,87.563,10.33617661]
[1770566894480,9.91368931,87.611,87.563,10.33617661]
[1770566894683,8.33649914,87.61,87.563,10.33617661]
[1770566894883,9.91368931,87.611,87.563,10.33617661]
[1770566895080,8.34829611,87.61,87.563,10.33617661]
[1770566895388,8.34829611,87.609,87.563,10.33617661]
[1770566895588,8.34829611,87.608,87.563,10.33617661]
[1770566895889,8.34829611,87.607,87.563,10.33617661]
[1770566896087,8.34829611,87.606,87.563,10.33617661]
[1770566896289,8.34829611,87.605,87.563,10.33617661]
[1770566896490,8.34829611,87.604,87.563,10.33617661]
[1770566896692,8.34829611,87.603,87.563,10.33617661]
[1770566896890,8.34829611,87.602,87.563,10.33617661]
[1770566897088,8.34829611,87.601,87.563,10.33617661]
[1770566897301,8.34829611,87.6,87.563,10.33617661]
[1770566897493,8.34829611,87.599,87.563,10.33617661]
[1770566897693,8.34829611,87.598,87.563,10.33617661]
[1770566897893,8.34829611,87.597,87.563,10.33617661]
[1770566898090,8.34829611,87.596,87.553,10.2874]
[1770566898295,8.34829611,87.595,87.553,10.2874]
[1770566898496,8.34829611,87.594,87.547,11.25591669]
[1770566898699,8.34829611,87.593,87.547,11.25591669]
[1770566898998,8.34829611,87.592,87.547,11.25591669]
[1770566899199,8.34829611,87.591,87.547,11.25591669]
[1770566899498,8.34829611,87.59,87.547,11.25591669]
[1770566899698,8.34829611,87.589,87.547,11.25591669]
[1770566899900,8.34829611,87.588,87.547,11.25591669]
[1770566900095,8.34829611,87.587,87.547,11.25591669]
[1770566900397,13.73339522,87.605,87.487,20.5904]
[1770566900398,10.27481322,87.585,87.53,11.25591669]
[1770566900598,10.27481322,87.583,87.49,11.25591669]
[1770566900795,10.27481322,87.579,87.49,11.25591669]
[1770566900992,10.27481322,87.574,87.509,11.25591669]
[1770566901195,10.26712983,87.566,87.509,11.25591669]
[1770566901393,8.34829611,87.565,87.509,11.25591669]
[1770566901588,10.26712983,87.563,87.509,11.25591669]
[1770566901794,8.34829611,87.562,87.509,11.25591669]
[1770566902102,8.34829611,87.561,87.509,11.25591669]
[1770566902301,20.54194305,87.554,87.493,11.25591669]
[1770566902491,10.26712983,87.55,87.493,11.25591669]
[1770566902696,8.34829611,87.549,87.493,11.25591669]
[1770566902896,8.34829611,87.548,87.493,11.25591669]
[1770566903204,10.26712983,87.54,87.493,11.25591669]
[1770566903501,10.27481322,87.537,87.476,11.25591669]
[1770566903702,10.27481322,87.535,87.476,11.25591669]
[1770566903902,10.27481322,87.532,87.476,11.25591669]
[1770566904106,20.61034935,87.556,87.476,11.25591669]
[1770566904107,10.27481322,87.53,87.476,11.25591669]
[1770566904302,10.27481322,87.528,87.471,6.537e-05]
[1770566904503,10.27481322,87.526,87.471,6.537e-05]
[1770566904703,8.38937618,87.525,87.471,6.537e-05]
[1770566905003,8.38937618,87.524,87.471,6.537e-05]
[1770566905303,8.38937618,87.523,87.471,6.537e-05]
[1770566905603,8.38937618,87.522,87.471,6.537e-05]
[1770566905806,8.38937618,87.521,87.471,6.537e-05]
[1770566906101,20.67048372,87.544,87.472,11.25591669]
[1770566906304,8.36255711,87.543,87.472,11.25591669]
[1770566906501,10.27481322,87.562,87.472,11.25591669]
[1770566906700,8.35425349,87.561,87.498,10.2939]
[1770566906901,8.35425349,87.56,87.499,11.25591669]
[1770566907102,10.27481322,87.562,87.499,11.25591669]
[1770566907103,8.35425349,87.559,87.499,11.25591669]
[1770566907295,8.35425349,87.558,87.499,11.25591669]
[1770566907605,8.35425349,87.557,87.501,11.25591669]
[1770566907806,8.35425349,87.556,87.501,11.25591669]
[1770566908002,10.2847,87.577,87.506,10.2929]
[1770566908205,10.27481322,87.575,87.507,11.25591669]
[1770566908407,8.35313486,87.574,87.507,11.25591669]
[1770566908608,8.35313486,87.573,87.509,11.25591669]
[1770566908807,8.35313486,87.572,87.509,11.25591669]
[1770566909110,8.35313486,87.571,87.509,11.25591669]
[1770566909307,8.35313486,87.57,87.509,11.25591669]
[1770566909508,8.35313486,87.569,87.509,11.25591669]
[1770566909708,8.35313486,87.568,87.513,10.2922]
[1770566909909,8.35313486,87.567,87.514,11.25591669]
[1770566910204,10.3956705,87.588,87.514,11.25591669]
[1770566910407,8.3552936,87.587,87.514,11.25591669]
[1770566910708,8.3552936,87.586,87.514,11.25591669]
[1770566911008,8.3552936,87.585,87.514,11.25591669]
[1770566911310,10.2833,87.589,87.471,6.537e-05]
[1770566911311,10.27481322,87.583,87.526,11.25591669]
[1770566911503,8.3552936,87.582,87.526,11.25591669]
[1770566911698,30.95208372,87.603,87.528,11.25591669]
[1770566911903,8.35468577,87.602,87.528,11.25591669]
[1770566912104,8.35363779,87.601,87.528,11.25591669]
[1770566912409,20.55641322,87.603,87.528,11.25591669]
[1770566912410,8.35363779,87.6,87.528,11.25591669]
[1770566912609,8.35363779,87.599,87.528,11.25591669]
[1770566912910,8.35363779,87.598,87.536,11.25591669]
[1770566913098,8.35363779,87.597,87.536,11.25591669]
[1770566913300,8.35363779,87.596,87.536,11.25591669]
[1770566913499,8.35363779,87.595,87.536,11.25591669]
[1770566913705,8.35363779,87.594,87.536,11.25591669]
[1770566913899,8.35363779,87.593,87.536,11.25591669]
[1770566914105,8.35363779,87.592,87.536,11.25591669]
[1770566914408,8.35363779,87.591,87.536,11.25591669]
[1770566914605,8.35363779,87.59,87.536,11.25591669]
[1770566914806,8.35363779,87.589,87.538,11.25591669]
[1770566915007,10.27481322,87.596,87.538,11.25591669]
[1770566915207,8.35204171,87.595,87.538,11.25591669]
[1770566915402,10.27481322,87.592,87.505,11.25591669]
[1770566915607,10.27481322,87.59,87.505,11.25591669]
[1770566915809,10.27481322,87.588,87.505,11.25591669]
[1770566915999,10.27481322,87.605,87.536,11.25591669]
[1770566916202,10.27481322,87.603,87.536,11.25591669]
[1770566916398,10.27481322,87.601,87.536,11.25591669]
[1770566916606,8.35406245,87.6,87.536,11.25591669]
[1770566916806,8.35406245,87.599,87.536,11.25591669]
[1770566917001,20.63179665,87.61,87.536,11.25591669]
[1770566917002,8.35406245,87.598,87.536,11.25591669]
[1770566917202,10.27481322,87.594,87.478,11.25591669]
[1770566917511,10.27481322,87.592,87.478,11.25591669]
[1770566917702,10.27481322,87.59,87.478,11.25591669]
[1770566917898,10.27481322,87.583,87.517,11.25591669]
[1770566918208,10.27481322,87.581,87.517,11.25591669]
[1770566918409,18.62779241,87.58,87.517,11.25591669]
[1770566918607,8.35297919,87.579,87.517,11.25591669]
[1770566918910,18.62779241,87.578,87.517,11.25591669]
[1770566919102,8.35297919,87.577,87.517,11.25591669]
[1770566919298,10.27481322,87.575,87.517,11.25591669]
[1770566919502,8.35297919,87.574,87.517,11.25591669]
[1770566919708,10.27481322,87.572,87.517,11.25591669]
[1770566921211,10.2837,87.586,87.52,11.25591669]
[1770566921404,8.36476356,87.585,87.52,11.25591669]
[1770566921599,8.36476356,87.584,87.52,11.25591669]
[1770566921809,8.36476356,87.583,87.52,11.25591669]
[1770566922010,8.36476356,87.582,87.52,11.25591669]
[1770566922205,10.27481322,87.59,87.535,11.25591669]
[1770566922510,8.36897215,87.589,87.535,11.25591669]
[1770566922707,8.36897215,87.588,87.535,11.25591669]
[1770566923013,10.2812,87.607,87.54,11.25591669]
[1770566923213,8.37925748,87.606,87.54,11.25591669]
[1770566923406,8.37925748,87.605,87.54,11.25591669]
[1770566923606,8.37925748,87.604,87.54,11.25591669]
[1770566923812,18.6540707,87.603,87.54,11.25591669]
[1770566924009,8.37925748,87.602,87.54,11.25591669]
[1770566924210,8.37925748,87.601,87.54,11.25591669]
[1770566924406,8.37925748,87.6,87.54,11.25591669]
[1770566924607,8.37925748,87.599,87.54,11.25591669]
[1770566924809,8.37925748,87.598,87.543,11.2374018]
[1770566925008,8.37925748,87.597,87.543,11.2374018]
[1770566925302,8.37925748,87.596,87.543,11.2374018]
[1770566925509,8.37925748,87.595,87.543,11.2374018]
[1770566925712,10.27481322,87.603,87.543,11.2374018]
[1770566925713,8.37925748,87.594,87.543,11.2374018]
[1770566925910,8.37925748,87.593,87.543,11.2374018]
[1770566926109,8.37925748,87.592,87.543,11.2374018]
[1770566926309,8.37925748,87.591,87.543,11.2374018]
[1770566926510,10.27481322,87.603,87.543,11.2374018]
[1770566926710,8.38759271,87.602,87.545,11.2374018]
[1770566926905,8.38759271,87.601,87.545,11.2374018]
[1770566927102,8.38759271,87.6,87.545,11.2374018]
[1770566927411,8.38759271,87.599,87.545,11.2374018]
[1770566927614,8.38759271,87.598,87.545,11.2374018]
[1770566927812,8.38759271,87.597,87.549,11.2374018]
[1770566928012,8.38759271,87.596,87.549,11.2374018]
[1770566928213,8.3989323,87.595,87.549,11.2374018]
[1770566928414,10.2804,87.614,87.549,11.2374018]
[1770566928713,8.39894377,87.613,87.555,11.2374018]
[1770566928913,8.39894377,87.612,87.555,11.2374018]
[1770566929113,8.39894377,87.611,87.555,11.2374018]
[1770566929413,8.39894377,87.61,87.555,11.2374018]
[1770566929707,8.39894377,87.61,87.491,160.1406]
[1770566929708,11.51799908,87.606,87.544,10.2884]
[1770566929906,10.3503065,87.597,87.523,11.2374018]
[1770566930108,8.39894377,87.605,87.523,11.2374018]
[1770566930109,11.51799908,87.593,87.523,11.2374018]
[1770566930313,11.51799908,87.591,87.523,11.2374018]
[1770566930507,11.51799908,87.589,87.523,11.2374018]
[1770566930708,10.3503065,87.593,87.523,11.2374018]
[1770566930709,11.51799908,87.587,87.523,11.2374018]
[1770566930910,11.51799908,87.583,87.524,10.2908]
[1770566931113,11.51799908,87.581,87.475,11.2374018]
[1770566931315,11.51799908,87.579,87.475,11.2374018]
[1770566931513,11.51799908,87.577,87.475,11.2374018]
[1770566931714,21.86830558,87.573,87.514,10.292]
[1770566931916,11.51799908,87.571,87.514,10.292]
[1770566932120,11.51799908,87.569,87.514,10.292]
[1770566932418,30.26724935,87.568,87.514,10.292]
[1770566932608,8.39894377,87.567,87.514,10.292]
[1770566932809,8.39894377,87.566,87.52,11.2374018]
[1770566933010,8.39894377,87.565,87.52,11.2374018]
[1770566933209,8.39894377,87.564,87.52,11.2374018]
[1770566933416,8.39894377,87.563,87.52,11.2374018]
[1770566933612,8.39894377,87.562,87.52,11.2374018]
[1770566933914,21.86830558,87.584,87.522,11.2374018]
[1770566934107,11.51799908,87.582,87.522,11.2374018]
[1770566934313,11.51799908,87.58,87.522,11.2374018]
[1770566934513,8.40850765,87.579,87.522,11.2374018]
[1770566934713,8.40850765,87.578,87.522,11.2374018]
[1770566934916,8.40850765,87.577,87.522,11.2374018]
[1770566935116,8.40850765,87.576,87.522,11.2374018]
[1770566935315,8.40850765,87.575,87.522,11.2374018]
[1770566935515,8.40850765,87.574,87.522,11.2374018]
[1770566935816,8.40850765,87.573,87.522,11.2374018]
[1770566936018,11.51799908,87.571,87.522,11.2374018]
[1770566936215,11.51799908,87.564,87.509,10.2926]
[1770566936421,11.51799908,87.562,87.509,10.2926]
[1770566936615,11.51799908,87.56,87.509,10.2926]
[1770566936817,11.51799908,87.558,87.507,11.2374018]
[1770566937011,10.3503065,87.552,87.49,11.2374018]
[1770566937323,10.3503065,87.542,87.49,11.2374018]
[1770566937517,8.40850765,87.541,87.49,11.2374018]
[1770566937820,8.40850765,87.54,87.49,11.2374018]
[1770566938024,8.40850765,87.539,87.49,11.2374018]
[1770566938323,8.40850765,87.538,87.49,11.2374018]
[1770566938623,8.40850765,87.537,87.49,11.2374018]
[1770566938824,8.40850765,87.536,87.49,11.2374018]